bitfinex/quotes_ETHUSD_20240823
["timestamp","ask_amount","ask_price","bid_price","bid_amount"]
[1724394827328,6.02413,2678.5,2678.4,0.1308506]
[1724394827474,9.02413,2678.5,2678.4,0.1308506]
[1724394827806,10.56350726,2678.5,2678.4,0.1308506]
[1724394828312,6.83007726,2678.5,2678.4,0.1308506]
[1724394829317,5.2907,2678.5,2678.4,0.1308506]
[1724394829488,2.4223,2679.1,2678.4,3.8643006]
[1724394829689,2.4223,2679.1,2678.5,19.42]
[1724394830004,2.4223,2679.1,2678.5,25.72997006]
[1724394830331,2.4223,2679.1,2678.5,21.99663006]
[1724394831094,5.4223,2679.1,2678.5,19.42]
[1724394831291,9.15492,2679.1,2678.5,19.42]
[1724394831493,3.73274,2679.0,2678.5,19.42]
[1724394831693,3.0,2678.9,2678.5,19.42]
[1724394835145,3.0,2678.9,2678.6,19.42]
[1724394836032,9.1549,2679.1,2678.6,19.42]
[1724394836360,11.08053126,2679.1,2678.6,19.42]
[1724394840702,3.73274,2679.0,2678.6,19.42]
[1724394840906,3.73302,2678.8,2678.5,19.42]
[1724394841106,3.73315,2678.7,2678.5,19.42]
[1724394841450,12.48311259,2678.9,2678.5,19.42]
[1724394841633,3.0,2678.8,2678.5,19.42]
[1724394843032,3.0,2678.8,2678.5,19.41898844]
[1724394846135,3.0,2679.0,2678.5,21.75108844]
[1724394846336,2.272,2679.2,2678.5,8.6269479]
[1724394847423,6.00425,2679.4,2678.6,3.73326]
[1724394847627,3.0,2679.3,2678.6,3.73326]
[1724394847858,3.0,2679.3,2678.6,5.87456816]
[1724394848130,6.73233,2679.3,2678.6,2.14130816]
[1724394848338,3.7326,2679.1,2678.5,2.3321]
[1724394848544,3.7326,2679.1,2678.4,19.54983904]
[1724394848545,6.21677,2678.9,2678.4,19.54983904]
[1724394848939,8.85314259,2678.9,2678.4,19.54983904]
[1724394849256,3.0,2678.8,2678.4,19.54983904]
[1724394849461,6.73309,2678.8,2678.4,19.54983904]
[1724394849819,8.29171326,2678.8,2678.4,0.1308506]
[1724394850543,6.36977259,2678.6,2678.4,0.1308506]
[1724394850858,9.19663,2678.5,2678.4,0.1308506]
[1724394851620,12.93006,2678.5,2678.4,0.1308506]
[1724394851821,9.19663,2678.5,2678.4,0.1308506]
[1724394852053,10.37993026,2678.5,2678.4,0.1308506]
[1724394852631,14.11336026,2678.5,2678.4,0.1308506]
[1724394854351,6.64650026,2678.5,2678.4,0.1308506]
[1724394857563,10.37993026,2678.5,2678.4,0.1308506]
[1724394858430,14.11336026,2678.5,2678.4,0.1308506]
[1724394858854,14.66336026,2678.5,2678.4,0.1308506]
[1724394860861,6.64650026,2678.5,2678.4,0.1308506]
[1724394861387,10.37993026,2678.5,2678.4,0.1308506]
[1724394863297,14.66336026,2678.5,2678.4,0.1308506]
[1724394864160,18.39679026,2678.5,2678.4,0.1308506]
[1724394864393,14.66336026,2678.5,2678.4,0.1308506]
[1724394864608,17.29973285,2678.5,2678.4,0.1308506]
[1724394864981,16.74973285,2678.5,2678.4,0.1308506]
[1724394866779,13.01630285,2678.5,2678.4,0.1308506]
[1724394867294,16.74973285,2678.5,2678.4,0.1308506]
[1724394868364,17.29973285,2678.5,2678.4,0.1308506]
[1724394871385,21.03316285,2678.5,2678.4,0.1308506]
[1724394871589,21.42331018,2678.5,2678.4,0.1308506]
[1724394872587,7.46798,2678.1,2678.0,12.37199508]
[1724394872790,19.67444259,2678.1,2678.0,12.37199508]
[1724394873664,15.94045259,2678.1,2678.0,12.37199508]
[1724394874069,9.57009,2678.1,2678.0,12.37199508]
[1724394874264,12.20646259,2678.1,2678.0,12.37199508]
[1724394874452,17.16109885,2678.1,2678.0,12.37199508]
[1724394884468,20.89508885,2678.1,2678.0,12.37199508]
[1724394884763,17.55129228,2678.1,2678.0,12.37199508]
[1724394885421,21.28528228,2678.1,2678.0,6.53442393]
[1724394888606,17.55129228,2678.1,2678.0,6.53442393]
[1724394888820,21.28528228,2678.1,2678.0,6.53442393]
[1724394888987,14.91491969,2678.1,2678.0,6.53442393]
[1724394889182,17.55129228,2678.1,2678.0,6.53442393]
[1724394889587,21.28528228,2678.1,2678.0,6.53442393]
[1724394891075,24.26893628,2678.1,2678.0,6.53442393]
[1724394892398,24.26893628,2678.1,2678.0,1.27679006]
[1724394894592,3.73515,2677.3,2677.0,2.458]
[1724394894809,3.73515,2677.3,2676.5,19.41898844]
[1724394895127,3.73515,2677.3,2676.8,2.4217]
[1724394895128,6.73533,2677.2,2676.8,2.4217]
[1724394896257,3.73538,2677.1,2676.8,2.4217]
[1724394896422,6.73561,2677.0,2676.3,2.4217]
[1724394896632,6.73561,2677.0,2676.3,3.03754]
[1724394896833,10.47127,2677.0,2676.3,3.03754]
[1724394897169,6.73561,2677.0,2676.3,3.03754]
[1724394897372,3.73569,2676.9,2676.3,3.03754]
[1724394897662,2.63637259,2677.4,2676.5,2.4217]
[1724394897814,2.63637259,2677.4,2676.5,6.15781]
[1724394897815,3.0,2677.3,2676.5,6.15781]
[1724394898009,3.0,2677.3,2676.6,2.4217]
[1724394898209,6.73514,2677.3,2676.6,2.4217]
[1724394898436,6.73514,2677.3,2676.6,3.0678564]
[1724394899548,6.73512,2677.3,2676.7,2.2532]
[1724394900654,3.73526,2677.2,2676.7,2.2532]
[1724394900855,3.0,2677.1,2676.7,2.2532]
[1724394901024,3.73546,2677.1,2676.7,2.2532]
[1724394901755,3.0,2677.3,2676.7,2.47852]
[1724394901955,7.46985,2677.5,2676.7,2.47852]
[1724394901956,3.0,2677.4,2676.7,2.47852]
[1724394902267,6.07154,2677.7,2676.7,2.47852]
[1724394902268,3.73464,2677.7,2676.8,19.41898844]
[1724394902519,6.37072259,2677.9,2677.2,2.3601]
[1724394902635,6.37072259,2677.9,2677.2,2.969647]
[1724394903262,3.73435,2677.9,2677.2,2.969647]
[1724394903468,3.73416,2678.0,2677.3,2.4375]
[1724394903781,3.73413,2678.0,2677.3,2.4375]
[1724394903966,3.73428,2677.9,2677.3,2.4375]
[1724394904112,3.73428,2677.9,2677.4,0.3047047]
[1724394904318,3.73428,2677.9,2677.4,19.72369314]
[1724394904922,3.0,2677.8,2677.4,19.72369314]
[1724394905956,6.7342,2678.0,2677.4,19.72369314]
[1724394906421,7.46862,2677.9,2677.4,19.72369314]
[1724394906618,3.0,2677.8,2677.4,19.41898844]
[1724394908951,6.73421,2678.0,2677.4,19.41898844]
[1724394909161,3.0,2678.0,2677.5,2.2997]
[1724394909355,3.0,2678.1,2677.6,19.41898844]
[1724394910327,6.734,2678.1,2677.6,19.41898844]
[1724394910530,3.0,2678.1,2677.7,2.3524]
[1724394910760,3.0,2678.2,2677.7,3.80478022]
[1724394911112,6.73385,2678.2,2677.7,3.80478022]
[1724394911311,3.73399,2678.1,2677.7,2.3524]
[1724394911571,3.0,2678.0,2677.7,2.3524]
[1724394912826,3.0,2678.1,2677.7,2.3524]
[1724394913031,3.0,2678.2,2677.7,4.63964722]
[1724394913234,7.46758,2678.3,2677.7,4.63964722]
[1724394913473,3.73385,2678.2,2677.7,4.63964722]
[1724394914038,3.73379,2678.3,2677.7,4.63964722]
[1724394915363,3.73379,2678.3,2677.7,24.05863566]
[1724394915674,3.73387,2678.2,2677.7,21.77138844]
[1724394916259,3.73426,2678.0,2677.7,19.41898844]
[1724394916864,3.73434,2677.9,2677.7,19.41898844]
[1724394918357,3.73407,2678.1,2677.7,19.41898844]
[1724394918531,3.73429,2677.9,2677.7,19.41898844]
[1724394919306,9.9244,2677.8,2677.7,19.41898844]
[1724394919439,10.4744,2677.8,2677.7,19.41898844]
[1724394921278,3.73497,2677.4,2676.9,19.41898844]
[1724394922374,3.73491,2677.5,2676.9,19.41898844]
[1724394923173,3.73472,2677.6,2676.9,21.97090828]
[1724394923326,7.46953,2677.6,2676.9,21.97090828]
[1724394924076,3.73484,2677.5,2676.9,21.97090828]
[1724394924276,3.73507,2677.4,2676.8,2.3643]
[1724394924475,3.73484,2677.5,2676.8,2.3643]
[1724394924476,6.14344,2677.5,2676.8,2.3643]
[1724394926131,2.63637259,2677.6,2676.9,21.69838844]
[1724394926372,4.91767259,2677.9,2676.9,21.69838844]
[1724394926574,3.73441,2677.8,2677.0,3.73542]
[1724394927275,8.65203259,2677.9,2677.1,2.2802]
[1724394927597,3.73306,2678.8,2677.1,2.2802]
[1724394927598,2.3321,2678.3,2677.5,2.318]
[1724394927875,2.3321,2678.3,2677.6,19.41898844]
[1724394928049,6.56275726,2678.3,2677.6,19.41898844]
[1724394928233,3.73385,2678.2,2677.6,19.41898844]
[1724394929351,6.56275726,2678.3,2677.6,19.41898844]
[1724394929352,3.734,2678.1,2677.6,19.41898844]
[1724394929975,6.56275726,2678.3,2677.6,19.41898844]
[1724394930271,3.73399,2678.1,2677.6,19.41898844]
[1724394932089,3.73399,2678.1,2677.7,0.09993802]
[1724394933240,3.73399,2678.1,2677.7,19.51892646]
[1724394933578,7.46806,2678.1,2677.7,19.51892646]
[1724394933908,8.49776073,2678.1,2677.7,19.51892646]
[1724394934572,4.76369073,2678.1,2677.7,19.51892646]
[1724394935086,8.49779073,2678.1,2677.7,19.51892646]
[1724394935608,3.73413,2678.0,2677.7,19.51892646]
[1724394935803,3.7344,2677.8,2677.7,19.51892646]
[1724394936319,7.4688,2677.8,2677.7,19.51892646]
[1724394937071,3.7344,2677.8,2677.7,19.51892646]
[1724394938470,7.4688,2677.8,2677.7,19.51892646]
[1724394938884,3.73439,2677.9,2677.7,19.51892646]
[1724394939095,3.7344,2677.8,2677.7,0.09993802]
[1724394939410,3.7344,2677.8,2677.3,19.41898844]
[1724394939572,3.7344,2677.8,2677.7,0.09908981]
[1724394939783,3.7344,2677.8,2677.3,19.41898844]
[1724394939996,3.7344,2677.8,2677.7,0.09908981]
[1724394940309,4.57364457,2677.8,2677.7,0.09908981]
[1724394940468,4.57364457,2677.8,2677.3,19.41898844]
[1724394940670,4.57364457,2677.8,2677.7,0.09908981]
[1724394940913,8.30813457,2677.8,2677.3,19.41898844]
[1724394941108,4.57364457,2677.8,2677.7,0.09908981]
[1724394941308,3.7344,2677.8,2677.3,19.41898844]
[1724394941533,3.7344,2677.8,2677.7,0.09908981]
[1724394941733,3.7344,2677.8,2677.3,19.41898844]
[1724394941913,3.7344,2677.8,2677.7,0.09908981]
[1724394942115,3.7344,2677.8,2677.3,19.41898844]
[1724394942335,3.7344,2677.8,2677.7,0.09908981]
[1724394942639,4.48127,2677.8,2677.3,19.41898844]
[1724394942829,3.73456,2677.7,2677.3,19.41898844]
[1724394943629,3.73476,2677.6,2677.4,0.09919688]
[1724394945538,6.01536,2677.7,2677.4,0.09919688]
[1724394945703,9.75003,2677.7,2677.4,0.09919688]
[1724394945891,11.06335726,2677.7,2677.4,0.09919688]
[1724394946323,3.73471,2677.6,2677.4,0.09919688]
[1724394947256,3.73482,2677.5,2677.4,0.09919688]
[1724394947406,3.73471,2677.6,2677.4,0.09919688]
[1724394947803,7.46947,2677.6,2677.4,0.09919688]
[1724394948107,4.91575673,2677.6,2677.4,0.09919688]
[1724394948305,4.48128,2677.8,2677.1,2.4238]
[1724394948616,3.73441,2677.8,2677.5,0.09605849]
[1724394948819,3.73441,2677.8,2677.1,2.4238]
[1724394949020,3.73441,2677.8,2677.2,0.09616557]
[1724394949223,7.46893,2677.8,2677.2,0.09616557]
[1724394949625,7.4689,2677.8,2677.2,2.66361097]
[1724394950040,3.73418,2678.0,2677.2,6.39883097]
[1724394950211,3.73418,2678.0,2677.3,2.3021]
[1724394950411,3.73406,2678.1,2677.3,2.3021]
[1724394950615,3.73406,2678.1,2677.5,2.4751]
[1724394950807,3.73385,2678.2,2677.5,2.4751]
[1724394951012,3.73385,2678.2,2677.6,0.0960228]
[1724394951518,7.46779,2678.2,2677.6,0.0960228]
[1724394951723,3.73385,2678.2,2677.6,0.0960228]
[1724394952763,7.46778,2678.2,2677.6,0.0960228]
[1724394952912,3.734,2678.1,2677.6,0.0960228]
[1724394953840,4.719235,2678.1,2677.6,0.0960228]
[1724394954046,3.73413,2678.0,2677.7,19.41898844]
[1724394954558,3.73413,2678.0,2677.8,0.09595143]
[1724394954754,3.73413,2678.0,2677.7,19.41898844]
[1724394954913,3.73413,2678.0,2677.9,0.09591575]
[1724394955110,3.73449,2677.8,2677.3,2.2702]
[1724394955315,7.46902,2677.8,2677.3,2.2702]
[1724394955622,3.73456,2677.7,2677.3,2.2702]
[1724394955812,7.46898,2677.8,2677.3,2.2702]
[1724394956440,3.73449,2677.8,2677.3,2.2702]
[1724394957470,7.32067876,2678.0,2677.3,4.43911884]
[1724394957628,6.21172,2678.0,2677.3,4.43911884]
[1724394958024,3.73428,2677.9,2677.3,4.43911884]
[1724394958449,3.73428,2677.9,2677.3,2.2702]
[1724394958646,3.73428,2677.9,2677.4,0.09602014]
[1724394959433,6.21163,2678.0,2677.4,0.09602014]
[1724394959632,9.94588,2678.0,2677.4,0.09602014]
[1724394959833,11.20410526,2678.0,2677.4,19.51500858]
[1724394960072,11.20405526,2678.0,2677.4,19.51500858]
[1724394960278,4.99235526,2678.0,2677.4,19.51500858]
[1724394960478,1.09903679,2677.7,2677.4,19.51500858]
[1724394961249,3.73393,2678.2,2677.4,23.24996858]
[1724394961444,1.09903679,2677.7,2677.4,23.24996858]
[1724394961667,1.09903679,2677.7,2677.4,19.51500858]
[1724394964039,1.09903679,2677.5,2677.4,19.51500858]
[1724394964651,1.09903679,2677.5,2677.4,22.06703844]
[1724394964858,1.09903679,2677.7,2677.4,22.06703844]
[1724394965841,1.09903679,2677.7,2677.5,19.41898844]
[1724394966186,1.09903679,2677.7,2677.6,0.09594876]
[1724394971834,1.09903679,2677.7,2677.6,19.5149372]
[1724394972328,7.62650847,2677.7,2677.6,19.5149372]
[1724394973127,11.36104847,2677.7,2677.6,19.5149372]
[1724394973335,11.96864847,2677.7,2677.6,19.5149372]
[1724394973628,8.23410847,2677.7,2677.6,19.5149372]
[1724394974137,1.09903679,2677.7,2677.6,19.5149372]
[1724394976536,3.73428,2677.9,2677.6,19.5149372]
[1724394976738,9.91878,2677.7,2677.6,19.5149372]
[1724394976942,10.46878,2677.7,2677.6,19.5149372]
[1724394977244,12.15287649,2677.7,2677.6,19.5149372]
[1724394977768,12.15287649,2677.7,2677.6,0.09594876]
[1724394978433,4.12410717,2678.1,2677.6,0.09586333]
[1724394978434,6.23047,2677.9,2677.6,0.09586333]
[1724394978932,6.23046,2677.9,2677.1,3.73537]
[1724394979588,9.96482,2677.9,2677.2,0.0960061]
[1724394979793,3.02797209,2678.1,2677.4,2.3665]
[1724394979989,6.37187492,2678.1,2677.5,0.09589902]
[1724394980936,10.10595492,2678.1,2677.5,0.09589902]
[1724394981140,10.10597492,2678.1,2677.5,0.09589902]
[1724394981729,3.73414,2678.0,2677.5,0.09589902]
[1724394981917,2.488,2677.9,2677.5,0.09589902]
[1724394982114,2.488,2677.9,2677.3,0.38313761]
[1724394982426,2.488,2677.9,2677.4,0.09600875]
[1724394983481,6.22227,2677.9,2677.4,0.09600875]
[1724394983687,3.73456,2677.7,2677.4,0.09600875]
[1724394983846,3.73456,2677.7,2677.3,19.41898844]
[1724394984064,3.73456,2677.7,2677.5,0.09595027]
[1724394984262,3.73456,2677.7,2677.4,0.09598597]
[1724394984451,7.4692,2677.7,2677.6,0.09591459]
[1724394984673,3.73456,2677.7,2677.5,0.09595027]
[1724394984849,3.73456,2677.7,2677.6,0.09591459]
[1724394985289,3.73456,2677.7,2677.3,19.41898844]
[1724394985497,3.73456,2677.7,2677.6,0.09591459]
[1724394985645,3.73456,2677.7,2677.3,19.41898844]
[1724394985848,3.73456,2677.7,2677.6,0.09591459]
[1724394986066,3.73456,2677.7,2677.3,19.41898844]
[1724394986602,3.73456,2677.7,2677.4,0.09598597]
[1724394987170,6.22234,2677.9,2677.4,0.09598597]
[1724394987369,3.73447,2677.8,2677.4,0.09598597]
[1724394988007,3.73419,2678.0,2677.4,0.09598597]
[1724394988473,6.37195492,2678.1,2677.4,0.09598597]
[1724394988474,2.2505,2677.8,2677.4,0.09598597]
[1724394989298,3.73467,2677.7,2677.4,0.09598597]
[1724394990112,5.96491,2677.8,2677.1,19.41898844]
[1724394990363,5.96491,2677.8,2677.5,0.09600722]
[1724394990504,5.96491,2677.8,2677.1,19.41898844]
[1724394990505,3.73455,2677.7,2677.1,19.41898844]
[1724394991019,3.73455,2677.7,2677.2,0.09611431]
[1724394992219,5.96491,2677.8,2677.2,0.09611431]
[1724394992376,9.69944,2677.8,2677.2,0.09611431]
[1724394992743,5.96491,2677.8,2677.2,0.09611431]
[1724394994315,3.73455,2677.7,2677.2,0.09611431]
[1724394994521,3.73455,2677.7,2677.2,3.39006459]
[1724394994723,5.96492,2677.8,2677.2,3.39006459]
[1724394995017,2.2305,2677.8,2677.2,3.39006459]
[1724394995219,2.2305,2677.8,2677.2,7.12523459]
[1724394995377,2.2305,2677.8,2677.3,1.40891578]
[1724394995575,2.2305,2677.8,2677.4,0.09604292]
[1724394997282,2.4992,2678.0,2677.4,0.09604292]
[1724394997841,6.23333,2678.0,2677.4,0.09604292]
[1724394998559,1.09907763,2677.6,2677.4,0.09604292]
[1724394998756,1.09907763,2677.6,2677.5,0.40019587]
[1724394999108,1.09907763,2677.6,2677.5,0.49623156]
[1724395003606,1.09907763,2677.8,2677.5,0.49623156]
[1724395003807,1.09907763,2677.8,2677.5,0.09603569]
[1724395004050,1.09907763,2677.8,2677.3,3.90591578]
[1724395004408,1.09907763,2677.8,2677.4,0.09607138]
[1724395005254,2.2995,2678.5,2677.6,2.3065]
[1724395005554,1.09907763,2678.1,2677.6,2.3065]
[1724395005760,1.09907763,2678.1,2677.7,0.32661432]
[1724395006411,6.03293,2678.5,2677.7,0.32661432]
[1724395006651,1.09907763,2678.1,2677.7,0.32661432]
[1724395007663,3.7336,2678.4,2677.7,0.32661432]
[1724395007964,1.09907763,2678.1,2677.7,0.32661432]
[1724395008179,1.09907763,2678.1,2677.8,0.26331143]
[1724395008528,1.09907763,2678.1,2677.9,0.09589295]
[1724395010657,1.09907763,2678.1,2678.0,0.09539603]
[1724395011179,1.09907763,2678.1,2677.8,0.26331143]
[1724395011476,1.09907763,2678.1,2677.9,0.09543171]
[1724395012024,2.2995,2678.5,2677.9,0.09543171]
[1724395012226,2.77851268,2678.9,2678.0,3.41747763]
[1724395012468,2.3886,2679.1,2678.3,6.05211]
[1724395012692,1.09907763,2679.2,2678.5,2.3184]
[1724395012835,1.09907763,2679.0,2678.6,0.23184]
[1724395013185,1.09907763,2679.0,2678.7,0.09500191]
[1724395013474,4.83139763,2679.3,2678.8,2.373]
[1724395013678,1.09907763,2679.1,2678.8,2.373]
[1724395013876,1.09907763,2679.1,2678.9,0.09478259]
[1724395014672,3.73232,2679.3,2678.9,0.09478259]
[1724395014990,3.73232,2679.3,2678.6,0.23184]
[1724395015270,3.73232,2679.3,2678.7,0.09466608]
[1724395017049,3.73226,2679.4,2678.7,0.09466608]
[1724395017341,7.46453,2679.4,2678.7,0.09466608]
[1724395017970,3.73236,2679.3,2678.7,0.09466608]
[1724395019883,3.73236,2679.3,2678.8,19.41898844]
[1724395020175,3.73236,2679.3,2678.8,21.60353389]
[1724395020371,3.73236,2679.3,2678.9,0.09459477]
[1724395020537,7.46457,2679.4,2678.9,0.09459477]
[1724395020935,3.73233,2679.3,2678.9,0.09459477]
[1724395022196,4.88544559,2679.7,2679.0,2.2525]
[1724395022347,3.73191,2679.6,2679.1,19.41898844]
[1724395022698,3.73191,2679.6,2679.2,0.09448782]
[1724395023195,8.61722559,2679.7,2679.2,0.09448782]
[1724395023402,6.36652559,2679.7,2679.2,2.27108545]
[1724395023978,2.63474559,2679.7,2679.2,2.27108545]
[1724395024179,3.73191,2679.6,2679.2,0.09448782]
[1724395025400,7.46391,2679.6,2679.2,0.09448782]
[1724395025699,3.73191,2679.6,2679.2,19.51347626]
[1724395027784,2.63474559,2679.7,2679.2,19.51347626]
[1724395028051,6.36650559,2679.7,2679.3,1.95134763]
[1724395028291,6.36650559,2679.7,2679.4,0.09354016]
[1724395028897,3.73171,2679.8,2679.4,0.09354016]
[1724395029101,2.3403,2679.9,2679.4,0.09354016]
[1724395029257,6.0719,2679.9,2679.4,0.09354016]
[1724395029457,6.0719,2679.9,2679.4,2.23992778]
[1724395030705,3.7316,2679.9,2679.4,4.62172778]
[1724395030906,3.73113,2680.2,2679.5,0.07463629]
[1724395031123,2.63474559,2680.3,2679.6,0.46963641]
[1724395031124,3.73099,2680.3,2679.6,0.46963641]
[1724395031402,3.73109,2680.2,2679.6,0.56288915]
[1724395031606,2.63474559,2680.1,2679.6,0.09325274]
[1724395032323,6.36594559,2680.1,2679.6,0.09325274]
[1724395033052,2.63474559,2680.1,2679.6,0.09325274]
[1724395033326,6.36602559,2680.1,2679.6,0.09325274]
[1724395033632,3.7315,2679.9,2679.6,0.09325274]
[1724395034523,1.09752588,2679.7,2679.6,0.09325274]
[1724395035132,1.09752588,2679.7,2679.2,21.91128844]
[1724395035429,1.09752588,2679.4,2679.3,2.19112884]
[1724395035727,1.09752588,2679.6,2679.3,2.19112884]
[1724395036916,1.09752588,2679.4,2679.3,2.19112884]
[1724395037702,1.09752588,2679.4,2679.3,21.61011728]
[1724395042717,1.09752588,2679.6,2679.3,21.61011728]
[1724395043235,1.09752588,2679.6,2679.4,2.41024173]
[1724395044301,2.2787,2680.2,2679.5,2.3143]
[1724395044652,1.09752588,2679.9,2679.5,2.3143]
[1724395045770,1.09752588,2679.7,2679.5,2.3143]
[1724395045901,1.09752588,2679.7,2679.6,0.23143]
[1724395046708,1.09752588,2679.9,2679.6,0.23143]
[1724395047060,2.2787,2680.2,2679.6,0.23143]
[1724395047220,1.09752588,2679.9,2679.7,0.254573]
[1724395048435,1.09752588,2679.9,2679.8,0.09250474]
[1724395048751,1.09752588,2679.9,2679.7,0.254573]
[1724395049044,1.09752588,2679.9,2679.8,0.09250474]
[1724395049346,1.09752588,2679.9,2679.7,0.254573]
[1724395049550,1.09752588,2679.9,2679.1,28.15156844]
[1724395049551,3.39752588,2679.9,2679.8,0.09250474]
[1724395049906,3.39752588,2679.9,2679.6,19.41898844]
[1724395050107,1.09752588,2679.7,2679.6,19.41898844]
[1724395055417,1.09752588,2679.7,2679.4,19.41898844]
[1724395055620,1.09752588,2679.7,2679.5,2.67789884]
[1724395057569,0.58558586,2679.8,2679.5,2.67789884]
[1724395057773,1.68311174,2679.8,2679.5,2.67789884]
[1724395060623,1.09752588,2679.6,2679.5,2.67789884]
[1724395061517,1.09752588,2679.6,2679.5,22.09688728]
[1724395063529,1.09752588,2679.6,2679.5,22.18947619]
[1724395064065,1.09752588,2679.8,2679.5,22.18947619]
[1724395064236,1.09752588,2679.8,2679.6,2.02496722]
[1724395064436,1.09752588,2679.8,2679.7,0.09251764]
[1724395066647,3.47032588,2679.8,2679.5,19.41898844]
[1724395066966,1.09752588,2679.6,2679.5,19.41898844]
[1724395067318,1.09752588,2679.6,2679.3,19.41898844]
[1724395067517,1.09752588,2679.6,2679.4,2.18517884]
[1724395069567,1.09752588,2679.6,2679.0,2.3778]
[1724395069777,1.09752588,2679.4,2679.0,2.3778]
[1724395070262,3.53082588,2679.4,2678.8,5.0]
[1724395070938,1.09752588,2678.9,2678.8,5.0]
[1724395071142,2.4333,2678.8,2678.6,5.0]
[1724395071366,1.09752588,2678.7,2678.6,5.5]
[1724395071551,1.09752588,2678.7,2678.6,5.0]
[1724395072161,1.09752588,2678.7,2678.1,2.4842]
[1724395072368,1.09752588,2678.5,2678.1,2.4842]
[1724395075050,1.09752588,2678.5,2678.1,7.4842]
[1724395075253,1.09752588,2678.5,2678.2,0.74842]
[1724395076497,1.09752588,2678.5,2678.2,20.16740844]
[1724395077194,1.09752588,2678.3,2678.2,20.16740844]
[1724395078228,1.09752588,2678.3,2678.2,0.74842]
[1724395078363,1.09752588,2678.3,2677.8,2.2844]
[1724395078554,1.09752588,2678.3,2678.2,0.08419018]
[1724395078760,1.09752588,2678.3,2677.8,2.2844]
[1724395078995,1.09752588,2678.3,2678.2,0.08419018]
[1724395079212,1.09752588,2678.3,2677.8,2.2844]
[1724395079351,1.09752588,2678.3,2678.2,0.08419018]
[1724395079551,1.09752588,2678.3,2677.9,0.72844]
[1724395079783,1.09752588,2678.3,2678.2,0.08419018]
[1724395079991,1.09752588,2678.3,2677.9,0.72844]
[1724395080174,1.09752588,2678.3,2678.2,0.08419018]
[1724395080695,3.0,2678.7,2677.9,0.72844]
[1724395080857,1.09752588,2678.5,2678.0,2.37346153]
[1724395081050,1.09752588,2678.5,2678.1,0.68361615]
[1724395081252,1.09752588,2678.5,2678.2,0.08419018]
[1724395081478,1.09752588,2678.5,2678.0,2.2892]
[1724395081650,1.09752588,2678.5,2678.1,0.08422586]
[1724395083771,3.0,2678.6,2678.1,0.08422586]
[1724395083970,1.09752588,2678.6,2678.2,0.23734259]
[1724395084170,4.09752588,2678.6,2678.2,0.23734259]
[1724395084468,4.09752588,2678.6,2678.3,0.08415451]
[1724395084668,4.09752588,2678.6,2678.2,0.23734259]
[1724395084923,4.09752588,2678.6,2678.3,0.08415451]
[1724395085271,4.09752588,2678.6,2678.2,0.23734259]
[1724395085467,4.09752588,2678.6,2678.3,0.08415451]
[1724395085773,4.09752588,2678.6,2678.2,0.23734259]
[1724395085969,4.09752588,2678.6,2678.4,0.08411885]
[1724395086173,4.09752588,2678.6,2678.3,0.08415451]
[1724395086402,4.09752588,2678.6,2678.5,0.08453155]
[1724395086583,4.09752588,2678.6,2678.4,0.08456721]
[1724395086768,4.09752588,2678.6,2678.5,0.08453155]
[1724395087515,4.09752588,2678.6,2678.2,0.23734259]
[1724395087685,4.09752588,2678.6,2678.5,0.08453155]
[1724395087869,4.09752588,2678.6,2678.2,0.23734259]
[1724395088069,4.09752588,2678.6,2678.3,0.08460288]
[1724395088319,4.09752588,2678.6,2678.2,0.23734259]
[1724395088504,4.09752588,2678.6,2678.3,2.05023598]
[1724395089320,1.09752588,2678.6,2678.3,2.05023598]
[1724395091614,1.09752588,2678.8,2678.3,2.05023598]
[1724395091813,3.49012588,2678.9,2678.4,2.4657]
[1724395092052,3.49012588,2678.9,2678.5,0.08453155]
[1724395092256,3.49012588,2678.9,2678.6,0.25502316]
[1724395092413,3.49012588,2678.9,2678.7,0.08446023]
[1724395092755,2.3926,2678.9,2678.7,0.08446023]
[1724395094122,1.09752588,2678.8,2678.7,0.08446023]
[1724395095033,1.09752588,2678.8,2678.2,2.61274259]
[1724395095217,1.09752588,2678.8,2678.3,0.84587714]
[1724395097658,1.09752588,2678.8,2678.2,1.38148173]
[1724395097866,1.09752588,2678.8,2678.3,0.71776857]
[1724395102017,1.09752588,2678.6,2678.3,0.71776857]
[1724395102251,2.3465,2678.5,2678.3,0.0796204]
[1724395102413,2.3465,2678.5,2678.1,5.0]
[1724395102634,2.3465,2678.5,2678.2,0.07965607]
[1724395103149,2.3465,2678.5,2678.2,0.58762168]
[1724395103317,2.3465,2678.5,2678.2,0.07965607]
[1724395103553,2.3465,2678.5,2677.9,5.0]
[1724395103753,2.3465,2678.5,2678.3,0.0796204]
[1724395103984,2.3465,2678.5,2677.9,5.0]
[1724395104192,2.3465,2678.5,2678.4,0.07958473]
[1724395104385,2.3465,2678.5,2678.0,5.84488259]
[1724395104873,2.3465,2678.5,2678.1,0.07691491]
[1724395106010,2.3465,2678.5,2678.1,19.49590335]
[1724395108318,2.3465,2678.5,2678.1,24.49590335]
[1724395108478,2.3465,2678.5,2678.2,2.53407859]
[1724395108680,2.3465,2678.5,2678.3,0.07684357]
[1724395108998,2.3465,2678.5,2678.2,2.53407859]
[1724395109156,2.3465,2678.5,2678.4,0.0768079]
[1724395109363,2.3465,2678.5,2678.3,0.07684357]
[1724395109560,2.3465,2678.5,2678.4,0.33790012]
[1724395110308,2.3465,2678.5,2678.4,0.0768079]
[1724395110461,2.3465,2678.5,2678.2,2.53407859]
[1724395110660,2.3465,2678.5,2678.3,0.07690037]
[1724395110946,2.3465,2678.5,2678.2,2.53407859]
[1724395111216,2.3465,2678.5,2678.4,0.0768647]
[1724395111380,2.3465,2678.5,2678.3,0.07690037]
[1724395111601,2.3465,2678.5,2678.2,2.53407859]
[1724395111602,2.3465,2678.5,2678.4,0.0768647]
[1724395111984,2.3465,2678.5,2678.3,19.41898844]
[1724395112168,2.3465,2678.5,2678.4,0.0768647]
[1724395116017,2.4618,2678.7,2678.4,0.0768647]
[1724395117966,2.4618,2678.7,2678.5,19.41898844]
[1724395118167,1.09752588,2678.6,2678.5,19.41898844]
[1724395120297,1.09752588,2678.6,2678.5,21.36088728]
[1724395121670,2.4618,2678.7,2678.5,21.36088728]
[1724395123735,2.4618,2678.7,2678.6,0.07416151]
[1724395123933,2.4618,2678.7,2678.6,19.49314995]
[1724395135765,2.4618,2678.7,2678.6,0.07416151]
[1724395136263,2.4618,2678.7,2678.2,19.41898844]